[Event "*** Titled Tuesday Blitz"]
[Site "Chess.com"]
[Date "2020.05.19"]
[Round "9"]
[White "vova-79"]
[Black "hongnhung1234"]
[Result "0-1"]
[WhiteElo "2380"]
[BlackElo "2202"]
[TimeControl "180+1"]
[EndTime "13:43:25 PDT"]
[Termination "hongnhung1234 won by resignation"]

1. d4 {[%clk 0:03:00.9]} 1... f5 {[%clk 0:02:59.8]} 2. Nc3 {[%clk 0:02:59.1]}
2... Nf6 {[%clk 0:02:59.6]} 3. Bg5 {[%clk 0:02:59.6]} 3... d5 {[%clk 0:02:59.6]}
4. f3 {[%clk 0:02:59.6]} 4... Be6 {[%clk 0:02:57.1]} 5. Qd2 {[%clk 0:02:48]}
5... Qd7 {[%clk 0:02:55]} 6. O-O-O {[%clk 0:02:42.6]} 6... Nc6 {[%clk 0:02:54]}
7. e4 {[%clk 0:02:42.6]} 7... fxe4 {[%clk 0:02:49]} 8. fxe4 {[%clk 0:02:42.2]}
8... O-O-O {[%clk 0:02:43.2]} 9. e5 {[%clk 0:02:27.5]} 9... Ne4 {[%clk
0:02:41.2]} 10. Nxe4 {[%clk 0:02:24.3]} 10... dxe4 {[%clk 0:02:42.1]} 11. Ne2
{[%clk 0:02:13.3]} 11... Bxa2 {[%clk 0:02:37.5]} 12. Nc3 {[%clk 0:02:09.2]}
12... Bd5 {[%clk 0:02:30.9]} 13. Be2 {[%clk 0:01:32.8]} 13... h6 {[%clk
0:02:26.9]} 14. Be3 {[%clk 0:01:27.8]} 14... e6 {[%clk 0:02:25.1]} 15. Bg4
{[%clk 0:01:21.3]} 15... Bb4 {[%clk 0:02:18.3]} 16. Rhf1 {[%clk 0:01:13.9]}
16... Na5 {[%clk 0:02:15.7]} 17. Qf2 {[%clk 0:01:07.8]} 17... Bxc3 {[%clk
0:02:13.2]} 18. bxc3 {[%clk 0:01:07.1]} 18... Nc4 {[%clk 0:02:12.8]} 19. Qf7
{[%clk 0:01:04.2]} 19... Qa4 {[%clk 0:02:04]} 20. Bxe6+ {[%clk 0:01:01.9]} 20...
Kb8 {[%clk 0:02:02.9]} 0-1

[Event "*** Titled Tuesday Blitz"]
[Site "Chess.com"]
[Date "2020.05.19"]
[Round "9"]
[White "aNaartjieZA"]
[Black "ChessicallyInclined"]
[Result "1-0"]
[WhiteElo "2584"]
[BlackElo "2505"]
[TimeControl "180+1"]
[EndTime "13:43:33 PDT"]
[Termination "aNaartjieZA won by resignation"]

1. e4 {[%clk 0:03:00.9]} 1... c5 {[%clk 0:02:59.8]} 2. Nf3 {[%clk 0:03:00.6]}
2... Nc6 {[%clk 0:03:00.1]} 3. g3 {[%clk 0:03:00.7]} 3... g6 {[%clk 0:03:00]} 4.
Bg2 {[%clk 0:03:00.9]} 4... Bg7 {[%clk 0:03:00.6]} 5. O-O {[%clk 0:03:01.4]}
5... d6 {[%clk 0:03:00.9]} 6. c3 {[%clk 0:03:01.7]} 6... e5 {[%clk 0:03:01]} 7.
d3 {[%clk 0:03:01.4]} 7... Nge7 {[%clk 0:03:00.9]} 8. a3 {[%clk 0:03:01.9]} 8...
O-O {[%clk 0:02:59.8]} 9. b4 {[%clk 0:03:02.2]} 9... a6 {[%clk 0:03:00.2]} 10.
Nbd2 {[%clk 0:03:01.8]} 10... h6 {[%clk 0:02:59.3]} 11. Bb2 {[%clk 0:03:01.4]}
11... Be6 {[%clk 0:02:59.2]} 12. Re1 {[%clk 0:02:56.5]} 12... b5 {[%clk
0:02:55.6]} 13. Rb1 {[%clk 0:02:52.8]} 13... a5 {[%clk 0:02:55]} 14. bxa5 {[%clk
0:02:49.2]} 14... Nxa5 {[%clk 0:02:51.6]} 15. d4 {[%clk 0:02:47.1]} 15... cxd4
{[%clk 0:02:50.6]} 16. cxd4 {[%clk 0:02:47.2]} 16... Nc4 {[%clk 0:02:49]} 17. d5
{[%clk 0:02:43.3]} 17... Nxb2 {[%clk 0:02:48.5]} 18. Rxb2 {[%clk 0:02:43.6]}
18... Bd7 {[%clk 0:02:49]} 19. Qb3 {[%clk 0:02:39.6]} 19... Qa5 {[%clk
0:02:47.6]} 20. Ra1 {[%clk 0:02:35.3]} 20... Rfc8 {[%clk 0:02:44.7]} 21. Qb4
{[%clk 0:02:32.7]} 21... Rc3 {[%clk 0:02:26.5]} 22. Qxd6 {[%clk 0:02:25.2]}
22... Rxa3 {[%clk 0:02:15.2]} 23. Rxa3 {[%clk 0:02:19]} 23... Qxa3 {[%clk
0:02:16.1]} 24. Qxa3 {[%clk 0:02:19]} 24... Rxa3 {[%clk 0:02:17]} 25. Bf1 {[%clk
0:02:18.9]} 25... f5 {[%clk 0:02:08]} 26. Bxb5 {[%clk 0:02:15.2]} 26... Bxb5
{[%clk 0:02:07.5]} 27. Rxb5 {[%clk 0:02:14.7]} 27... fxe4 {[%clk 0:02:07.9]} 28.
Nh4 {[%clk 0:02:05.9]} 28... Bf6 {[%clk 0:01:56]} 29. Nxe4 {[%clk 0:02:02]}
29... Bxh4 {[%clk 0:01:51.8]} 30. gxh4 {[%clk 0:02:02]} 30... Rd3 {[%clk
0:01:51.1]} 31. d6 {[%clk 0:02:00.9]} 31... Nf5 {[%clk 0:01:51]} 32. Rb8+ {[%clk
0:01:46.7]} 32... Kf7 {[%clk 0:01:50.6]} 33. Rb7+ {[%clk 0:01:46.6]} 33... Ke6
{[%clk 0:01:49.1]} 34. Nc5+ {[%clk 0:01:45.8]} 1-0

[Event "*** Titled Tuesday Blitz"]
[Site "Chess.com"]
[Date "2020.05.19"]
[Round "9"]
[White "canary2016"]
[Black "calin_dragomirescu"]
[Result "1-0"]
[WhiteElo "1977"]
[BlackElo "2189"]
[TimeControl "180+1"]
[EndTime "13:43:36 PDT"]
[Termination "canary2016 won by resignation"]

1. Nf3 {[%clk 0:03:00.9]} 1... g6 {[%clk 0:02:59.7]} 2. g3 {[%clk 0:03:00.3]}
2... Bg7 {[%clk 0:03:00.3]} 3. Bg2 {[%clk 0:03:00.5]} 3... Nf6 {[%clk
0:03:00.9]} 4. O-O {[%clk 0:03:00.7]} 4... O-O {[%clk 0:03:01.6]} 5. d4 {[%clk
0:02:59.8]} 5... d6 {[%clk 0:03:02]} 6. c4 {[%clk 0:02:59.6]} 6... Nbd7 {[%clk
0:03:02.3]} 7. Nc3 {[%clk 0:02:59.7]} 7... c6 {[%clk 0:03:02.6]} 8. e4 {[%clk
0:02:59.5]} 8... e5 {[%clk 0:03:03.1]} 9. Be3 {[%clk 0:02:57.4]} 9... Ng4 {[%clk
0:03:00.8]} 10. Bg5 {[%clk 0:02:51.1]} 10... f6 {[%clk 0:02:58.7]} 11. Bc1
{[%clk 0:02:47.9]} 11... exd4 {[%clk 0:02:56.3]} 12. Nxd4 {[%clk 0:02:47.5]}
12... Nge5 {[%clk 0:02:54.1]} 13. Ne6 {[%clk 0:02:45.4]} 13... Qe7 {[%clk
0:02:53.8]} 14. Nxf8 {[%clk 0:02:45.4]} 14... Nxf8 {[%clk 0:02:52.7]} 15. b3
{[%clk 0:02:42.1]} 15... f5 {[%clk 0:02:51.4]} 16. exf5 {[%clk 0:02:38.8]} 16...
Bxf5 {[%clk 0:02:49.6]} 17. Bb2 {[%clk 0:02:38.4]} 17... Nd3 {[%clk 0:02:47.7]}
18. Qd2 {[%clk 0:02:31]} 18... Nxb2 {[%clk 0:02:43.2]} 19. Qxb2 {[%clk
0:02:30.4]} 19... Qf6 {[%clk 0:02:32.6]} 20. Rac1 {[%clk 0:02:28.7]} 20... Ne6
{[%clk 0:02:30.1]} 21. Qd2 {[%clk 0:02:25.8]} 21... Nd4 {[%clk 0:02:23]} 22. Ne2
{[%clk 0:02:24.3]} 22... Nxe2+ {[%clk 0:02:14.7]} 23. Qxe2 {[%clk 0:02:24.2]}
23... h5 {[%clk 0:01:57.9]} 24. Rfe1 {[%clk 0:02:23]} 24... Rf8 {[%clk
0:01:55.1]} 25. Qe7 {[%clk 0:02:20.2]} 25... Bh6 {[%clk 0:01:50.3]} 26. Qxf6
{[%clk 0:02:11.8]} 26... Rxf6 {[%clk 0:01:49.5]} 27. Re8+ {[%clk 0:02:09.1]}
27... Kf7 {[%clk 0:01:46.6]} 28. Rce1 {[%clk 0:02:08.9]} 28... Bf8 {[%clk
0:01:26.4]} 29. Rb8 {[%clk 0:02:04]} 29... d5 {[%clk 0:01:12.4]} 30. cxd5 {[%clk
0:02:02.8]} 30... Bb4 {[%clk 0:01:08.2]} 1-0

[Event "*** Titled Tuesday Blitz"]
[Site "Chess.com"]
[Date "2020.05.19"]
[Round "9"]
[White "atwalcb"]
[Black "turayev_shahruh17"]
[Result "1-0"]
[WhiteElo "2367"]
[BlackElo "2502"]
[TimeControl "180+1"]
[EndTime "13:43:38 PDT"]
[Termination "atwalcb won by resignation"]

1. d4 {[%clk 0:03:00.9]} 1... g6 {[%clk 0:02:59.5]} 2. e4 {[%clk 0:02:59.1]}
2... Bg7 {[%clk 0:02:58.9]} 3. Nc3 {[%clk 0:02:59.1]} 3... c6 {[%clk 0:02:58.6]}
4. Nf3 {[%clk 0:02:55]} 4... d5 {[%clk 0:02:58.8]} 5. Be3 {[%clk 0:02:51.4]}
5... dxe4 {[%clk 0:02:56.6]} 6. Nxe4 {[%clk 0:02:51]} 6... Nf6 {[%clk
0:02:55.3]} 7. Nxf6+ {[%clk 0:02:49.8]} 7... Bxf6 {[%clk 0:02:56.2]} 8. Bc4
{[%clk 0:02:49.3]} 8... Nd7 {[%clk 0:02:53.4]} 9. O-O {[%clk 0:02:48.4]} 9...
Nb6 {[%clk 0:02:52.8]} 10. Bb3 {[%clk 0:02:46.8]} 10... Bg4 {[%clk 0:02:51.7]}
11. c3 {[%clk 0:02:42]} 11... O-O {[%clk 0:02:45.5]} 12. h3 {[%clk 0:02:42]}
12... Bxf3 {[%clk 0:02:44.5]} 13. Qxf3 {[%clk 0:02:41.2]} 13... Bg7 {[%clk
0:02:44.6]} 14. Bf4 {[%clk 0:02:37.4]} 14... Nd5 {[%clk 0:02:35.8]} 15. Bxd5
{[%clk 0:02:36]} 15... Qxd5 {[%clk 0:02:36.7]} 16. Qxd5 {[%clk 0:02:34.4]} 16...
cxd5 {[%clk 0:02:37.6]} 17. Rfe1 {[%clk 0:02:34.4]} 17... e6 {[%clk 0:02:38]}
18. a4 {[%clk 0:02:34.3]} 18... Rfc8 {[%clk 0:02:32.9]} 19. a5 {[%clk
0:02:31.7]} 19... a6 {[%clk 0:02:24.4]} 20. Ra4 {[%clk 0:02:30.4]} 20... Bf8
{[%clk 0:02:15.7]} 21. Kf1 {[%clk 0:02:26.3]} 21... Rc6 {[%clk 0:02:15]} 22. Ke2
{[%clk 0:02:23.7]} 22... Rac8 {[%clk 0:02:15]} 23. Kd3 {[%clk 0:02:22.3]} 23...
Rc4 {[%clk 0:02:07.5]} 24. Rea1 {[%clk 0:02:16.8]} 24... Be7 {[%clk 0:01:50.5]}
25. Bd2 {[%clk 0:02:03.5]} 25... Kg7 {[%clk 0:01:42.6]} 26. b3 {[%clk
0:02:00.9]} 26... Rxa4 {[%clk 0:01:39.3]} 27. Rxa4 {[%clk 0:01:59.3]} 27... Bd8
{[%clk 0:01:37.9]} 28. c4 {[%clk 0:01:57.1]} 28... dxc4+ {[%clk 0:01:31.5]} 29.
Rxc4 {[%clk 0:01:54.3]} 29... Bf6 {[%clk 0:01:32.4]} 30. Rxc8 {[%clk 0:01:53.7]}
1-0

[Event "*** Titled Tuesday Blitz"]
[Site "Chess.com"]
[Date "2020.05.19"]
[Round "9"]
[White "Kildepiotr"]
[Black "vanyakuba"]
[Result "1-0"]
[WhiteElo "2577"]
[BlackElo "2441"]
[TimeControl "180+1"]
[EndTime "13:43:50 PDT"]
[Termination "Kildepiotr won by resignation"]

1. Nf3 {[%clk 0:03:00.9]} 1... d5 {[%clk 0:02:41.3]} 2. g3 {[%clk 0:02:59.2]}
2... c5 {[%clk 0:02:38.6]} 3. Bg2 {[%clk 0:02:58.6]} 3... Nc6 {[%clk 0:02:38.8]}
4. O-O {[%clk 0:02:58.7]} 4... Nf6 {[%clk 0:02:36]} 5. d3 {[%clk 0:02:59]} 5...
Bg4 {[%clk 0:02:30.3]} 6. Nbd2 {[%clk 0:02:59.6]} 6... Qd7 {[%clk 0:02:29.6]} 7.
e4 {[%clk 0:02:59.2]} 7... Bh3 {[%clk 0:02:24.9]} 8. Qe2 {[%clk 0:02:57.9]} 8...
Bxg2 {[%clk 0:02:24.6]} 9. Kxg2 {[%clk 0:02:57.5]} 9... e6 {[%clk 0:02:22.6]}
10. c3 {[%clk 0:02:56.4]} 10... O-O-O {[%clk 0:02:12.8]} 11. e5 {[%clk
0:02:52.7]} 11... Ng8 {[%clk 0:02:12.5]} 12. a3 {[%clk 0:02:50.5]} 12... h5
{[%clk 0:02:08.9]} 13. h3 {[%clk 0:02:49.1]} 13... Nh6 {[%clk 0:02:08.8]} 14. b4
{[%clk 0:02:46.5]} 14... Nf5 {[%clk 0:02:08.1]} 15. Nb3 {[%clk 0:02:42.4]} 15...
d4 {[%clk 0:01:53.4]} 16. c4 {[%clk 0:02:32.4]} 16... cxb4 {[%clk 0:01:51.8]}
17. axb4 {[%clk 0:02:32.1]} 17... Bxb4 {[%clk 0:01:52]} 18. Bg5 {[%clk
0:02:18.2]} 18... Be7 {[%clk 0:01:48.9]} 19. Bxe7 {[%clk 0:02:17.5]} 19... Qxe7
{[%clk 0:01:49.3]} 20. Ra4 {[%clk 0:02:11.6]} 20... g5 {[%clk 0:01:45.7]} 21.
Nfd2 {[%clk 0:02:06.3]} 21... g4 {[%clk 0:01:19.3]} 22. h4 {[%clk 0:02:03.5]}
22... Rhg8 {[%clk 0:01:19.7]} 23. Na5 {[%clk 0:01:58.4]} 23... Nxa5 {[%clk
0:01:17.8]} 24. Rxa5 {[%clk 0:01:58.5]} 24... a6 {[%clk 0:01:16.4]} 25. Ne4
{[%clk 0:01:55.9]} 25... Qc7 {[%clk 0:01:12]} 26. Rc5 {[%clk 0:01:55.2]} 1-0

[Event "*** Titled Tuesday Blitz"]
[Site "Chess.com"]
[Date "2020.05.19"]
[Round "9"]
[White "Majesth"]
[Black "Natalya_Buksa"]
[Result "0-1"]
[WhiteElo "2457"]
[BlackElo "2582"]
[TimeControl "180+1"]
[EndTime "13:43:54 PDT"]
[Termination "Natalya_Buksa won by resignation"]

1. d4 {[%clk 0:03:00.9]} 1... d5 {[%clk 0:02:59.9]} 2. Bg5 {[%clk 0:02:59.7]}
2... Nf6 {[%clk 0:02:57.8]} 3. e3 {[%clk 0:02:58.9]} 3... Ne4 {[%clk 0:02:57.9]}
4. Bf4 {[%clk 0:02:57.8]} 4... e6 {[%clk 0:02:58.1]} 5. Bd3 {[%clk 0:02:58.2]}
5... Nf6 {[%clk 0:02:57.4]} 6. Nf3 {[%clk 0:02:58.3]} 6... c5 {[%clk 0:02:56.8]}
7. O-O {[%clk 0:02:55]} 7... Nc6 {[%clk 0:02:57.2]} 8. c3 {[%clk 0:02:47]} 8...
Bd6 {[%clk 0:02:56.1]} 9. Ne5 {[%clk 0:02:45.5]} 9... Qc7 {[%clk 0:02:56.5]} 10.
Nxc6 {[%clk 0:02:30.4]} 10... bxc6 {[%clk 0:02:56.2]} 11. Bxd6 {[%clk
0:02:25.2]} 11... Qxd6 {[%clk 0:02:55.6]} 12. f4 {[%clk 0:02:24.3]} 12... cxd4
{[%clk 0:02:48.6]} 13. exd4 {[%clk 0:02:22.5]} 13... O-O {[%clk 0:02:44.8]} 14.
Nd2 {[%clk 0:02:21]} 14... c5 {[%clk 0:02:44.9]} 15. dxc5 {[%clk 0:02:19.1]}
15... Qxc5+ {[%clk 0:02:44.8]} 16. Kh1 {[%clk 0:02:19.3]} 16... Rb8 {[%clk
0:02:43.1]} 17. Nb3 {[%clk 0:02:16.1]} 17... Qe7 {[%clk 0:02:41]} 18. Qe2 {[%clk
0:02:12.2]} 18... Bb7 {[%clk 0:02:40.5]} 19. Nd4 {[%clk 0:02:11.6]} 19... Ne4
{[%clk 0:02:38.8]} 20. Bxe4 {[%clk 0:02:01.7]} 20... dxe4 {[%clk 0:02:38.3]} 21.
c4 {[%clk 0:02:00.2]} 21... Rfd8 {[%clk 0:02:37.1]} 22. Rad1 {[%clk 0:01:52.1]}
22... h6 {[%clk 0:02:36.2]} 23. a3 {[%clk 0:01:45.4]} 23... a5 {[%clk
0:02:34.8]} 24. Qc2 {[%clk 0:01:36.7]} 24... Qc5 {[%clk 0:02:30.7]} 25. Nb3
{[%clk 0:01:27.4]} 25... Qh5 {[%clk 0:02:27]} 26. Rxd8+ {[%clk 0:01:13.1]} 26...
Rxd8 {[%clk 0:02:25.1]} 27. c5 {[%clk 0:01:13.3]} 27... e3 {[%clk 0:02:21.1]}
28. Nc1 {[%clk 0:00:54.7]} 28... Rd2 {[%clk 0:02:16.1]} 0-1

[Event "*** Titled Tuesday Blitz"]
[Site "Chess.com"]
[Date "2020.05.19"]
[Round "9"]
[White "pedro_nascimento85"]
[Black "Ashedu66"]
[Result "0-1"]
[WhiteElo "1736"]
[BlackElo "2129"]
[TimeControl "180+1"]
[EndTime "13:44:30 PDT"]
[Termination "Ashedu66 won by resignation"]

1. d4 {[%clk 0:03:00.9]} 1... d6 {[%clk 0:02:59.5]} 2. Nf3 {[%clk 0:02:59.3]}
2... Bg4 {[%clk 0:02:58.9]} 3. e3 {[%clk 0:02:43.2]} 3... Nf6 {[%clk 0:02:56]}
4. Be2 {[%clk 0:02:41.8]} 4... Nbd7 {[%clk 0:02:55.8]} 5. h3 {[%clk 0:02:41.7]}
5... Bh5 {[%clk 0:02:55.2]} 6. O-O {[%clk 0:02:40.5]} 6... e5 {[%clk 0:02:51.7]}
7. Ne1 {[%clk 0:02:26.1]} 7... Bxe2 {[%clk 0:02:42.1]} 8. Qxe2 {[%clk
0:02:25.7]} 8... Be7 {[%clk 0:02:42.2]} 9. c4 {[%clk 0:02:23.7]} 9... c6 {[%clk
0:02:36.4]} 10. Nc3 {[%clk 0:02:20.5]} 10... O-O {[%clk 0:02:34.8]} 11. Nf3
{[%clk 0:02:10.5]} 11... Re8 {[%clk 0:02:27.2]} 12. dxe5 {[%clk 0:02:08]} 12...
dxe5 {[%clk 0:02:26.6]} 13. Rd1 {[%clk 0:02:07.3]} 13... Qc7 {[%clk 0:02:25.8]}
14. Qc2 {[%clk 0:01:59.9]} 14... Bf8 {[%clk 0:02:17.4]} 15. b3 {[%clk
0:01:47.4]} 15... Rad8 {[%clk 0:01:47.1]} 16. Bb2 {[%clk 0:01:45.2]} 16... h6
{[%clk 0:01:44.8]} 17. Ne2 {[%clk 0:01:43.2]} 17... e4 {[%clk 0:01:33.3]} 18.
Nfd4 {[%clk 0:01:31.1]} 18... Ne5 {[%clk 0:01:31.6]} 19. Nf5 {[%clk 0:01:23.7]}
19... g6 {[%clk 0:01:12.4]} 20. Nfg3 {[%clk 0:01:18.3]} 20... Bg7 {[%clk
0:01:10.3]} 21. Rd7 {[%clk 0:00:59]} 21... Qxd7 {[%clk 0:01:01.8]} 0-1

[Event "*** Titled Tuesday Blitz"]
[Site "Chess.com"]
[Date "2020.05.19"]
[Round "9"]
[White "WhiteCapital80"]
[Black "grandcoach"]
[Result "1-0"]
[WhiteElo "2445"]
[BlackElo "2102"]
[TimeControl "180+1"]
[EndTime "13:44:32 PDT"]
[Termination "WhiteCapital80 won by resignation"]

1. e4 {[%clk 0:03:00.9]} 1... c5 {[%clk 0:02:59.2]} 2. Nf3 {[%clk 0:03:00.7]}
2... Nc6 {[%clk 0:02:59.7]} 3. d4 {[%clk 0:03:00.8]} 3... cxd4 {[%clk
0:03:00.2]} 4. Nxd4 {[%clk 0:03:01.1]} 4... e5 {[%clk 0:03:00.7]} 5. Nb5 {[%clk
0:03:01]} 5... d6 {[%clk 0:03:00.6]} 6. Bc4 {[%clk 0:03:00.9]} 6... a6 {[%clk
0:02:53.8]} 7. N5c3 {[%clk 0:03:00.6]} 7... b5 {[%clk 0:02:53.2]} 8. Bxf7+
{[%clk 0:02:56.6]} 8... Kxf7 {[%clk 0:02:50.6]} 9. Qd5+ {[%clk 0:02:57.2]} 9...
Be6 {[%clk 0:02:49]} 10. Qxc6 {[%clk 0:02:57.5]} 10... Nf6 {[%clk 0:02:30.5]}
11. Bg5 {[%clk 0:02:56.8]} 11... Be7 {[%clk 0:02:14.6]} 12. Bxf6 {[%clk
0:02:47.8]} 12... gxf6 {[%clk 0:02:09.8]} 13. O-O {[%clk 0:02:29.9]} 13... Rg8
{[%clk 0:02:09.1]} 14. Kh1 {[%clk 0:02:20.6]} 14... Qf8 {[%clk 0:01:56]} 15. Nd5
{[%clk 0:02:07.2]} 15... Qg7 {[%clk 0:01:55.6]} 16. Rg1 {[%clk 0:01:42.4]} 16...
Qg6 {[%clk 0:01:01.3]} 17. Nbc3 {[%clk 0:01:33.6]} 17... Rgc8 {[%clk 0:00:49.6]}
18. Qb7 {[%clk 0:01:29.9]} 1-0

[Event "*** Titled Tuesday Blitz"]
[Site "Chess.com"]
[Date "2020.05.19"]
[Round "9"]
[White "Nathan_Filgueiras"]
[Black "Shivagami"]
[Result "1-0"]
[WhiteElo "2317"]
[BlackElo "2171"]
[TimeControl "180+1"]
[EndTime "13:44:36 PDT"]
[Termination "Nathan_Filgueiras won by resignation"]

1. e4 {[%clk 0:03:00.9]} 1... c5 {[%clk 0:02:59.1]} 2. Nf3 {[%clk 0:03:00.4]}
2... d6 {[%clk 0:02:58.6]} 3. d4 {[%clk 0:03:00.3]} 3... cxd4 {[%clk 0:02:58.5]}
4. Nxd4 {[%clk 0:03:01.2]} 4... Nf6 {[%clk 0:02:58.6]} 5. Nc3 {[%clk 0:03:01.3]}
5... a6 {[%clk 0:02:59]} 6. h3 {[%clk 0:03:01.8]} 6... e5 {[%clk 0:02:58.3]} 7.
Nde2 {[%clk 0:03:01.6]} 7... h5 {[%clk 0:02:57.9]} 8. Bg5 {[%clk 0:03:02]} 8...
Nbd7 {[%clk 0:02:50.8]} 9. Qd2 {[%clk 0:02:47.4]} 9... Be7 {[%clk 0:02:46.9]}
10. O-O-O {[%clk 0:02:47.2]} 10... O-O {[%clk 0:02:43.8]} 11. h4 {[%clk
0:02:46.3]} 11... b5 {[%clk 0:02:35.7]} 12. f3 {[%clk 0:02:43.3]} 12... Bb7
{[%clk 0:02:31.9]} 13. Ng3 {[%clk 0:02:32.7]} 13... g6 {[%clk 0:02:23.6]} 14.
Bd3 {[%clk 0:02:26.2]} 14... Rc8 {[%clk 0:02:18.8]} 15. Kb1 {[%clk 0:02:24.4]}
15... Nb6 {[%clk 0:02:12.4]} 16. Nce2 {[%clk 0:02:15.3]} 16... d5 {[%clk
0:02:08.2]} 17. exd5 {[%clk 0:02:03.7]} 17... Nbxd5 {[%clk 0:02:06.4]} 18. Ne4
{[%clk 0:01:24.8]} 18... Nb4 {[%clk 0:01:47.7]} 19. Nxf6+ {[%clk 0:01:01.9]}
19... Kh8 {[%clk 0:01:43.9]} 20. Ne4 {[%clk 0:00:54.4]} 20... Bd5 {[%clk
0:01:25.2]} 21. Qxb4 {[%clk 0:00:47.9]} 1-0

[Event "*** Titled Tuesday Blitz"]
[Site "Chess.com"]
[Date "2020.05.19"]
[Round "9"]
[White "Meri-Arabidze"]
[Black "TigranMukhutdinov"]
[Result "1-0"]
[WhiteElo "2606"]
[BlackElo "2471"]
[TimeControl "180+1"]
[EndTime "13:44:43 PDT"]
[Termination "Meri-Arabidze won by resignation"]

1. Nf3 {[%clk 0:03:00.9]} 1... Nf6 {[%clk 0:02:59.1]} 2. e3 {[%clk 0:03:01.8]}
2... g6 {[%clk 0:02:59.2]} 3. b3 {[%clk 0:03:02.2]} 3... Bg7 {[%clk 0:02:59.4]}
4. Bb2 {[%clk 0:03:03.1]} 4... O-O {[%clk 0:02:59.6]} 5. c4 {[%clk 0:03:03.4]}
5... b6 {[%clk 0:02:58.3]} 6. Be2 {[%clk 0:03:03.6]} 6... Bb7 {[%clk 0:02:58.6]}
7. O-O {[%clk 0:03:04.2]} 7... c5 {[%clk 0:02:58.9]} 8. d4 {[%clk 0:03:04.8]}
8... Ne4 {[%clk 0:02:56.4]} 9. Nbd2 {[%clk 0:03:04]} 9... d6 {[%clk 0:02:54.1]}
10. Rc1 {[%clk 0:03:02.5]} 10... Nd7 {[%clk 0:02:53.3]} 11. Qc2 {[%clk
0:03:02.7]} 11... f5 {[%clk 0:02:51.3]} 12. d5 {[%clk 0:03:01.9]} 12... Nxd2
{[%clk 0:02:47]} 13. Qxd2 {[%clk 0:03:01.9]} 13... Nf6 {[%clk 0:02:44]} 14. Ng5
{[%clk 0:03:01.4]} 14... Bc8 {[%clk 0:02:41.2]} 15. Bf3 {[%clk 0:03:01.6]} 15...
h6 {[%clk 0:02:36.4]} 16. Ne6 {[%clk 0:03:00.9]} 16... Bxe6 {[%clk 0:02:37]} 17.
dxe6 {[%clk 0:03:01.8]} 17... Rc8 {[%clk 0:02:37.4]} 18. Rfd1 {[%clk 0:02:51.9]}
18... Qe8 {[%clk 0:02:10.8]} 19. h3 {[%clk 0:02:44]} 19... g5 {[%clk 0:02:10.4]}
20. a3 {[%clk 0:02:39]} 20... Qg6 {[%clk 0:02:07.1]} 21. Bd5 {[%clk 0:02:26.3]}
21... h5 {[%clk 0:01:44.5]} 22. f4 {[%clk 0:02:20]} 22... g4 {[%clk 0:01:41.5]}
23. hxg4 {[%clk 0:02:10.7]} 23... hxg4 {[%clk 0:01:39.3]} 24. Bxf6 {[%clk
0:01:45.4]} 24... Rxf6 {[%clk 0:01:35.6]} 25. g3 {[%clk 0:01:44.3]} 25... Qe8
{[%clk 0:01:30.7]} 26. Kg2 {[%clk 0:01:40.9]} 26... Rh6 {[%clk 0:01:29.2]} 27.
Rh1 {[%clk 0:01:41.4]} 27... Rxh1 {[%clk 0:01:16.9]} 28. Rxh1 {[%clk 0:01:40.3]}
28... Qg6 {[%clk 0:01:17.4]} 29. Qc2 {[%clk 0:01:22.8]} 29... Rf8 {[%clk
0:01:14.1]} 30. e4 {[%clk 0:01:18.5]} 30... Bd4 {[%clk 0:01:05]} 31. exf5 {[%clk
0:01:13.2]} 31... Qxf5 {[%clk 0:01:04.8]} 32. Be4 {[%clk 0:01:13.3]} 32... Qxe6
{[%clk 0:01:05]} 33. Bd5 {[%clk 0:01:13.1]} 1-0

[Event "*** Titled Tuesday Blitz"]
[Site "Chess.com"]
[Date "2020.05.19"]
[Round "9"]
[White "antoszu"]
[Black "StephenDedalus83"]
[Result "0-1"]
[WhiteElo "2540"]
[BlackElo "2751"]
[TimeControl "180+1"]
[EndTime "13:44:47 PDT"]
[Termination "StephenDedalus83 won by resignation"]

1. d4 {[%clk 0:03:00.9]} 1... g6 {[%clk 0:02:57.4]} 2. c4 {[%clk 0:03:00.6]}
2... Bg7 {[%clk 0:02:57.8]} 3. e4 {[%clk 0:03:01]} 3... d6 {[%clk 0:02:57.4]} 4.
Nc3 {[%clk 0:03:00.9]} 4... Nc6 {[%clk 0:02:56.9]} 5. Nge2 {[%clk 0:02:57]} 5...
e5 {[%clk 0:02:55.4]} 6. Be3 {[%clk 0:02:57.2]} 6... exd4 {[%clk 0:02:51.6]} 7.
Nxd4 {[%clk 0:02:58.1]} 7... Nge7 {[%clk 0:02:51.7]} 8. Be2 {[%clk 0:02:53]}
8... O-O {[%clk 0:02:50]} 9. Nxc6 {[%clk 0:02:49.9]} 9... bxc6 {[%clk
0:02:45.5]} 10. O-O {[%clk 0:02:49.3]} 10... Rb8 {[%clk 0:02:40.6]} 11. Qd2
{[%clk 0:02:47.9]} 11... c5 {[%clk 0:02:40.6]} 12. Rab1 {[%clk 0:02:20.2]} 12...
f5 {[%clk 0:02:19.9]} 13. Bh6 {[%clk 0:02:16.8]} 13... Bxh6 {[%clk 0:02:18.6]}
14. Qxh6 {[%clk 0:02:17.7]} 14... f4 {[%clk 0:02:18.7]} 15. Nd5 {[%clk
0:02:04.7]} 15... Nxd5 {[%clk 0:02:18]} 16. cxd5 {[%clk 0:02:05.6]} 16... Qf6
{[%clk 0:02:13.9]} 17. b3 {[%clk 0:02:03.6]} 17... Rb4 {[%clk 0:02:11]} 18. Bf3
{[%clk 0:01:57]} 18... Bd7 {[%clk 0:02:03.1]} 19. Rfe1 {[%clk 0:01:44.8]} 19...
Qe5 {[%clk 0:02:02.6]} 20. Qh4 {[%clk 0:01:24.3]} 20... a5 {[%clk 0:01:51.1]}
21. Rbc1 {[%clk 0:01:05.7]} 21... h5 {[%clk 0:01:46.9]} 22. Bd1 {[%clk
0:00:34.4]} 22... Kg7 {[%clk 0:01:45.5]} 23. g3 {[%clk 0:00:31.2]} 23... f3
{[%clk 0:01:38.6]} 24. Re3 {[%clk 0:00:22.8]} 24... Bg4 {[%clk 0:01:37.8]} 0-1